[Event "Early-Titled-Tuesday-Blitz-January-30-2024"]
[Site "Chess.com"]
[Date "2024.01.30"]
[Round "9"]
[White "amintabatabaei"]
[Black "Kiborg95"]
[Result "1-0"]
[WhiteElo "2950"]
[BlackElo "2861"]
[TimeControl "180+1"]
[EndTime "9:45:01 PST"]
[Termination "amintabatabaei won by resignation"]

1. d4 {[%clk 0:03:00.9]} 1... d6 {[%clk 0:03:00.3]} 2. e4 {[%clk 0:02:59.5]}
2... Nf6 {[%clk 0:03:00.8]} 3. Nc3 {[%clk 0:02:59.5]} 3... e5 {[%clk 0:03:01.5]}
4. dxe5 {[%clk 0:02:58.2]} 4... dxe5 {[%clk 0:03:02.4]} 5. Qxd8+ {[%clk
0:02:58.7]} 5... Kxd8 {[%clk 0:03:03.3]} 6. Bc4 {[%clk 0:02:58.8]} 6... Ke8
{[%clk 0:03:04]} 7. Nf3 {[%clk 0:02:51.7]} 7... Bd6 {[%clk 0:03:03.8]} 8. h3
{[%clk 0:02:48.9]} 8... Nbd7 {[%clk 0:02:57.5]} 9. Be3 {[%clk 0:02:47.7]} 9...
a6 {[%clk 0:02:53.7]} 10. a4 {[%clk 0:02:45.8]} 10... h6 {[%clk 0:02:47.3]} 11.
Nd2 {[%clk 0:02:38.6]} 11... b6 {[%clk 0:02:44.3]} 12. Nb3 {[%clk 0:02:25.6]}
12... Bb7 {[%clk 0:02:42.5]} 13. f3 {[%clk 0:02:26.3]} 13... Ke7 {[%clk
0:02:40.6]} 14. O-O-O {[%clk 0:02:23.2]} 14... Rhb8 {[%clk 0:02:34.8]} 15. g4
{[%clk 0:02:18.1]} 15... Bc6 {[%clk 0:02:34.6]} 16. h4 {[%clk 0:02:05.8]} 16...
b5 {[%clk 0:02:35]} 17. Na5 {[%clk 0:02:04.2]} 17... Bb7 {[%clk 0:02:22.5]} 18.
Nxb7 {[%clk 0:02:02.6]} 18... Rxb7 {[%clk 0:02:05.9]} 19. Nd5+ {[%clk
0:01:50.3]} 19... Ke8 {[%clk 0:01:56.9]} 20. Bb3 {[%clk 0:01:45.9]} 20... Bc5
{[%clk 0:01:50.4]} 21. Nxf6+ {[%clk 0:01:42.3]} 1-0

[Event "Early-Titled-Tuesday-Blitz-January-30-2024"]
[Site "Chess.com"]
[Date "2024.01.30"]
[Round "9"]
[White "Msb2"]
[Black "GMRAVEN_ON_YOUTUBE"]
[Result "1-0"]
[WhiteElo "3009"]
[BlackElo "2785"]
[TimeControl "180+1"]
[EndTime "9:45:27 PST"]
[Termination "Msb2 won by resignation"]

1. d4 {[%clk 0:03:00.9]} 1... f5 {[%clk 0:02:59.1]} 2. c4 {[%clk 0:02:57.5]}
2... Nf6 {[%clk 0:02:59.6]} 3. Nf3 {[%clk 0:02:57.8]} 3... g6 {[%clk 0:03:00.2]}
4. e3 {[%clk 0:02:57.7]} 4... Bg7 {[%clk 0:03:00.2]} 5. b4 {[%clk 0:02:58.4]}
5... O-O {[%clk 0:02:58.6]} 6. Be2 {[%clk 0:02:58.9]} 6... d6 {[%clk 0:02:58.5]}
7. Bb2 {[%clk 0:02:59.4]} 7... Qe8 {[%clk 0:02:56.3]} 8. O-O {[%clk 0:02:59.4]}
8... e5 {[%clk 0:02:53.5]} 9. dxe5 {[%clk 0:03:00.3]} 9... Ng4 {[%clk
0:02:53.6]} 10. Nc3 {[%clk 0:02:39.7]} 10... dxe5 {[%clk 0:02:49]} 11. Nd5
{[%clk 0:02:32.3]} 11... Qd8 {[%clk 0:02:35.5]} 12. h3 {[%clk 0:02:29.5]} 12...
c6 {[%clk 0:02:27]} 13. hxg4 {[%clk 0:02:19.6]} 13... fxg4 {[%clk 0:02:23.1]}
14. Nxe5 {[%clk 0:02:16.1]} 14... cxd5 {[%clk 0:02:23.4]} 15. Qxd5+ {[%clk
0:02:08.8]} 15... Qxd5 {[%clk 0:02:23.2]} 16. cxd5 {[%clk 0:02:09.7]} 16... Na6
{[%clk 0:02:22]} 17. a3 {[%clk 0:02:07.2]} 17... Nc7 {[%clk 0:02:19.9]} 18. d6
{[%clk 0:02:01]} 18... Nd5 {[%clk 0:02:06.4]} 19. Rad1 {[%clk 0:01:22.8]} 19...
Nb6 {[%clk 0:02:04.9]} 20. Ba1 {[%clk 0:01:19.4]} 20... Be6 {[%clk 0:02:04.5]}
21. Bxg4 {[%clk 0:01:15.5]} 21... Bxg4 {[%clk 0:02:03.3]} 22. Nxg4 {[%clk
0:01:16.4]} 22... Bxa1 {[%clk 0:02:02.7]} 23. Rxa1 {[%clk 0:01:17.3]} 23... Rad8
{[%clk 0:02:01.7]} 24. Rfd1 {[%clk 0:01:15.1]} 24... Nc4 {[%clk 0:02:01.7]} 25.
d7 {[%clk 0:01:15.6]} 25... Rf7 {[%clk 0:01:59.1]} 26. Nh6+ {[%clk 0:01:15.6]}
26... Kf8 {[%clk 0:01:57.6]} 27. Nxf7 {[%clk 0:01:16.5]} 27... Kxf7 {[%clk
0:01:58.5]} 28. Rac1 {[%clk 0:01:15.9]} 1-0

[Event "Early-Titled-Tuesday-Blitz-January-30-2024"]
[Site "Chess.com"]
[Date "2024.01.30"]
[Round "9"]
[White "MoreChessJulia"]
[Black "AnaKuchava"]
[Result "0-1"]
[WhiteElo "2074"]
[BlackElo "2207"]
[TimeControl "180+1"]
[EndTime "9:45:30 PST"]
[Termination "AnaKuchava won by resignation"]

1. d4 {[%clk 0:03:00.4]} 1... d5 {[%clk 0:02:58.1]} 2. c4 {[%clk 0:03:01.3]}
2... e6 {[%clk 0:02:56.4]} 3. Nc3 {[%clk 0:03:00.2]} 3... Be7 {[%clk 0:02:55.1]}
4. cxd5 {[%clk 0:02:59.1]} 4... exd5 {[%clk 0:02:53.8]} 5. Bf4 {[%clk
0:02:59.7]} 5... c6 {[%clk 0:02:53.1]} 6. e3 {[%clk 0:02:59.8]} 6... Bf5 {[%clk
0:02:52.1]} 7. g4 {[%clk 0:02:59.7]} 7... Be6 {[%clk 0:02:43.8]} 8. h3 {[%clk
0:02:56.7]} 8... Nd7 {[%clk 0:02:31.8]} 9. Bd3 {[%clk 0:02:55.8]} 9... h5 {[%clk
0:02:29.6]} 10. f3 {[%clk 0:02:52.2]} 10... hxg4 {[%clk 0:02:28.9]} 11. fxg4
{[%clk 0:02:51.8]} 11... Ngf6 {[%clk 0:02:28]} 12. g5 {[%clk 0:02:46.8]} 12...
Nh5 {[%clk 0:02:24]} 13. g6 {[%clk 0:02:43.1]} 13... Bh4+ {[%clk 0:02:09.6]} 14.
Kd2 {[%clk 0:02:41.2]} 14... Nxf4 {[%clk 0:01:35.1]} 15. exf4 {[%clk 0:02:39.9]}
15... Qf6 {[%clk 0:01:29.9]} 16. Nge2 {[%clk 0:02:36.9]} 16... fxg6 {[%clk
0:01:23.9]} 17. Rg1 {[%clk 0:02:34.9]} 17... Bf5 {[%clk 0:01:23]} 18. Qc2 {[%clk
0:02:33.6]} 18... O-O-O {[%clk 0:01:20.3]} 19. Raf1 {[%clk 0:02:31]} 19... Kb8
{[%clk 0:01:18.3]} 20. Bxf5 {[%clk 0:02:25.3]} 20... gxf5 {[%clk 0:01:17.2]} 21.
Nc1 {[%clk 0:02:20.1]} 21... Qxd4+ {[%clk 0:01:13.4]} 22. Nd3 {[%clk 0:02:18.6]}
22... Nc5 {[%clk 0:01:09.2]} 23. Ne2 {[%clk 0:02:15.8]} 23... Ne4+ {[%clk
0:01:02.1]} 24. Kc1 {[%clk 0:02:14.3]} 24... Qe3+ {[%clk 0:01:00.9]} 25. Kb1
{[%clk 0:02:10.8]} 25... Nd2+ {[%clk 0:00:58.3]} 0-1

[Event "Early-Titled-Tuesday-Blitz-January-30-2024"]
[Site "Chess.com"]
[Date "2024.01.30"]
[Round "9"]
[White "HanSchut"]
[Black "maurovargas01"]
[Result "0-1"]
[WhiteElo "2241"]
[BlackElo "1859"]
[TimeControl "180+1"]
[EndTime "9:45:43 PST"]
[Termination "maurovargas01 won by checkmate"]

1. e4 {[%clk 0:03:00.9]} 1... d5 {[%clk 0:03:00.1]} 2. exd5 {[%clk 0:03:00.6]}
2... Qxd5 {[%clk 0:03:01]} 3. Nc3 {[%clk 0:03:00.7]} 3... Qa5 {[%clk 0:03:01.4]}
4. d4 {[%clk 0:03:01.2]} 4... c6 {[%clk 0:03:01.7]} 5. Bd2 {[%clk 0:03:01.7]}
5... Qc7 {[%clk 0:03:01.4]} 6. Bc4 {[%clk 0:02:58.7]} 6... Nf6 {[%clk
0:03:00.2]} 7. Qe2 {[%clk 0:02:58.8]} 7... Bf5 {[%clk 0:02:57.1]} 8. O-O-O
{[%clk 0:02:56.4]} 8... e6 {[%clk 0:02:57.2]} 9. f3 {[%clk 0:02:43.7]} 9... Bd6
{[%clk 0:02:56.8]} 10. g4 {[%clk 0:02:34]} 10... Bg6 {[%clk 0:02:56.5]} 11. h4
{[%clk 0:02:26]} 11... h6 {[%clk 0:02:52.5]} 12. Nh3 {[%clk 0:02:07.1]} 12...
Nbd7 {[%clk 0:02:51.9]} 13. Bxe6 {[%clk 0:02:05]} 13... fxe6 {[%clk 0:02:48.5]}
14. Qxe6+ {[%clk 0:02:04.6]} 14... Kd8 {[%clk 0:02:47.7]} 15. h5 {[%clk
0:01:53.8]} 15... Re8 {[%clk 0:02:45.7]} 16. Qb3 {[%clk 0:01:46]} 16... Bh7
{[%clk 0:02:44.1]} 17. g5 {[%clk 0:01:46.5]} 17... Bg8 {[%clk 0:02:43.4]} 18.
Qa4 {[%clk 0:01:37.1]} 18... Nb6 {[%clk 0:02:40]} 19. Qa5 {[%clk 0:01:36.8]}
19... hxg5 {[%clk 0:02:11.1]} 20. Nxg5 {[%clk 0:01:35.5]} 20... Nc4 {[%clk
0:02:03]} 21. Qxc7+ {[%clk 0:01:09.6]} 21... Kxc7 {[%clk 0:01:57.5]} 22. Nge4
{[%clk 0:01:10.5]} 22... Nxd2 {[%clk 0:01:55.8]} 23. Kxd2 {[%clk 0:01:06.1]}
23... Bf4+ {[%clk 0:01:54.2]} 24. Kd3 {[%clk 0:01:06.4]} 24... b5 {[%clk
0:01:48.6]} 25. a3 {[%clk 0:01:03.9]} 25... Bc4# {[%clk 0:01:46.8]} 0-1

[Event "Early-Titled-Tuesday-Blitz-January-30-2024"]
[Site "Chess.com"]
[Date "2024.01.30"]
[Round "9"]
[White "tuschessCM1"]
[Black "thesupera12"]
[Result "1-0"]
[WhiteElo "2678"]
[BlackElo "2538"]
[TimeControl "180+1"]
[EndTime "9:45:55 PST"]
[Termination "tuschessCM1 won by resignation"]

1. c4 {[%clk 0:02:54.9]} 1... b6 {[%clk 0:02:56.8]} 2. Nf3 {[%clk 0:02:53.3]}
2... Bb7 {[%clk 0:02:57.7]} 3. e3 {[%clk 0:02:54]} 3... g6 {[%clk 0:02:58.1]} 4.
g3 {[%clk 0:02:54.7]} 4... Bg7 {[%clk 0:02:58.8]} 5. Bg2 {[%clk 0:02:55.3]} 5...
Nf6 {[%clk 0:02:57.6]} 6. O-O {[%clk 0:02:55.7]} 6... O-O {[%clk 0:02:58]} 7.
Nc3 {[%clk 0:02:54.9]} 7... c5 {[%clk 0:02:57.4]} 8. d4 {[%clk 0:02:54.4]} 8...
cxd4 {[%clk 0:02:57.2]} 9. Nxd4 {[%clk 0:02:55.1]} 9... Bxg2 {[%clk 0:02:56]}
10. Kxg2 {[%clk 0:02:56]} 10... d5 {[%clk 0:02:55.6]} 11. cxd5 {[%clk
0:02:49.1]} 11... Nxd5 {[%clk 0:02:56.5]} 12. Qf3 {[%clk 0:02:48.6]} 12... e6
{[%clk 0:02:50]} 13. Nxd5 {[%clk 0:02:48.7]} 13... Qxd5 {[%clk 0:02:45.4]} 14.
Qxd5 {[%clk 0:02:48.9]} 14... exd5 {[%clk 0:02:46.3]} 15. Rd1 {[%clk 0:02:49.2]}
15... Nd7 {[%clk 0:02:39.5]} 16. Nb5 {[%clk 0:02:48.7]} 16... Nf6 {[%clk
0:02:35.5]} 17. Bd2 {[%clk 0:02:40.6]} 17... Ne4 {[%clk 0:02:32]} 18. Bb4 {[%clk
0:02:32.5]} 18... Rfd8 {[%clk 0:02:19.3]} 19. Nc7 {[%clk 0:02:24.5]} 19... Bxb2
{[%clk 0:02:04.7]} 20. Rab1 {[%clk 0:02:14.9]} 20... Bf6 {[%clk 0:01:38.7]} 21.
Nxa8 {[%clk 0:02:12.6]} 21... Rxa8 {[%clk 0:01:38.4]} 22. Rxd5 {[%clk
0:02:12.9]} 22... Rc8 {[%clk 0:01:38.6]} 23. Kf3 {[%clk 0:02:00.4]} 23... Ng5+
{[%clk 0:01:32.6]} 24. Ke2 {[%clk 0:02:00.5]} 24... Rc4 {[%clk 0:01:21.1]} 25.
Be1 {[%clk 0:01:56.7]} 25... Ra4 {[%clk 0:01:19.6]} 26. Rd2 {[%clk 0:01:55]}
26... Ne4 {[%clk 0:01:19.3]} 27. Rc2 {[%clk 0:01:54.6]} 27... Nc5 {[%clk
0:01:13.3]} 28. Bb4 {[%clk 0:01:50.8]} 28... Ne4 {[%clk 0:01:07.4]} 29. Rc8+
{[%clk 0:01:50.4]} 29... Kg7 {[%clk 0:01:03]} 30. Bf8+ {[%clk 0:01:50.3]} 30...
Kg8 {[%clk 0:01:03.6]} 31. Bh6+ {[%clk 0:01:51.2]} 1-0

[Event "Early-Titled-Tuesday-Blitz-January-30-2024"]
[Site "Chess.com"]
[Date "2024.01.30"]
[Round "9"]
[White "MBA_CHESS_2021"]
[Black "Balla_Tamas"]
[Result "0-1"]
[WhiteElo "2247"]
[BlackElo "2420"]
[TimeControl "180+1"]
[EndTime "9:46:07 PST"]
[Termination "Balla_Tamas won by checkmate"]

1. e4 {[%clk 0:03:00.9]} 1... c5 {[%clk 0:03:00.2]} 2. Nf3 {[%clk 0:02:59.8]}
2... Nc6 {[%clk 0:03:00.3]} 3. d4 {[%clk 0:02:59.7]} 3... cxd4 {[%clk
0:03:01.2]} 4. Nxd4 {[%clk 0:03:00.2]} 4... e5 {[%clk 0:03:01.6]} 5. Nb5 {[%clk
0:02:58.7]} 5... d6 {[%clk 0:03:01.9]} 6. c4 {[%clk 0:02:56.8]} 6... Be7 {[%clk
0:03:01.7]} 7. N1c3 {[%clk 0:02:56.5]} 7... a6 {[%clk 0:03:01.7]} 8. Na3 {[%clk
0:02:56.1]} 8... f5 {[%clk 0:03:02.3]} 9. Bd3 {[%clk 0:02:43.9]} 9... f4 {[%clk
0:03:02.2]} 10. Nd5 {[%clk 0:02:38]} 10... Nh6 {[%clk 0:03:00.8]} 11. g3 {[%clk
0:02:22.6]} 11... O-O {[%clk 0:03:00.6]} 12. Qc2 {[%clk 0:02:17.8]} 12... Nd4
{[%clk 0:02:59.5]} 13. Qc3 {[%clk 0:02:02.8]} 13... Nf3+ {[%clk 0:02:53.8]} 14.
Kd1 {[%clk 0:01:59.6]} 14... Bg4 {[%clk 0:02:44.3]} 15. h3 {[%clk 0:01:53]}
15... fxg3 {[%clk 0:02:40.6]} 16. hxg4 {[%clk 0:01:51.8]} 16... g2 {[%clk
0:02:40.6]} 17. Rf1 {[%clk 0:01:34.8]} 17... gxf1=Q+ {[%clk 0:02:35.8]} 18. Bxf1
{[%clk 0:01:34.4]} 18... Nxg4 {[%clk 0:02:35.7]} 19. Be3 {[%clk 0:01:32.6]}
19... Bg5 {[%clk 0:02:33]} 20. Kc2 {[%clk 0:01:26.8]} 20... Bxe3 {[%clk
0:02:31.2]} 21. fxe3 {[%clk 0:01:26.8]} 21... Rc8 {[%clk 0:02:31.1]} 22. Rd1
{[%clk 0:01:21.2]} 22... b5 {[%clk 0:02:30.6]} 23. Kb1 {[%clk 0:01:18.8]} 23...
bxc4 {[%clk 0:02:30.7]} 24. Bxc4 {[%clk 0:01:17.3]} 24... Kh8 {[%clk 0:02:29.7]}
25. Rh1 {[%clk 0:01:16.1]} 25... Nf2 {[%clk 0:02:25.4]} 26. Rf1 {[%clk
0:01:02.8]} 26... Nxe4 {[%clk 0:02:25.1]} 27. Qd3 {[%clk 0:00:58.2]} 27... Nfd2+
{[%clk 0:02:22.9]} 28. Ka1 {[%clk 0:00:55.6]} 28... Rxf1+ {[%clk 0:02:22.6]} 29.
Qxf1 {[%clk 0:00:52.2]} 29... Nxf1 {[%clk 0:02:22.7]} 30. b3 {[%clk 0:00:49.6]}
30... Nfd2 {[%clk 0:02:22.2]} 31. Bd3 {[%clk 0:00:48.3]} 31... Qa5 {[%clk
0:02:14.8]} 32. Kb2 {[%clk 0:00:47.6]} 32... Nc3 {[%clk 0:02:13.4]} 33. Ne7
{[%clk 0:00:41.5]} 33... Nd1+ {[%clk 0:02:12.6]} 34. Ka1 {[%clk 0:00:34.5]}
34... Qc3# {[%clk 0:02:12.5]} 0-1

[Event "Early-Titled-Tuesday-Blitz-January-30-2024"]
[Site "Chess.com"]
[Date "2024.01.30"]
[Round "9"]
[White "BardArtem"]
[Black "Grossboss19"]
[Result "1-0"]
[WhiteElo "2782"]
[BlackElo "2607"]
[TimeControl "180+1"]
[EndTime "9:46:27 PST"]
[Termination "BardArtem won by resignation"]

1. e4 {[%clk 0:03:00.9]} 1... c6 {[%clk 0:02:54.5]} 2. Nf3 {[%clk 0:02:53.4]}
2... d5 {[%clk 0:02:55.4]} 3. exd5 {[%clk 0:02:54.2]} 3... cxd5 {[%clk
0:02:55.1]} 4. Ne5 {[%clk 0:02:54.6]} 4... Nc6 {[%clk 0:02:53.3]} 5. d4 {[%clk
0:02:54.4]} 5... e6 {[%clk 0:02:47.5]} 6. c3 {[%clk 0:02:53.2]} 6... Bd6 {[%clk
0:02:46.5]} 7. f4 {[%clk 0:02:52]} 7... Nf6 {[%clk 0:02:46.5]} 8. Bd3 {[%clk
0:02:50.4]} 8... O-O {[%clk 0:02:40.6]} 9. Nd2 {[%clk 0:02:47.8]} 9... Ne7
{[%clk 0:02:38.1]} 10. O-O {[%clk 0:02:47.7]} 10... b6 {[%clk 0:02:32.8]} 11.
Rf3 {[%clk 0:02:46.3]} 11... Bb7 {[%clk 0:02:31.6]} 12. Rh3 {[%clk 0:02:46.3]}
12... g6 {[%clk 0:02:28.8]} 13. Qf3 {[%clk 0:02:44]} 13... h5 {[%clk 0:02:07.7]}
14. Nf1 {[%clk 0:02:26.7]} 14... Nf5 {[%clk 0:02:01.3]} 15. Ng3 {[%clk 0:02:13]}
15... Nxg3 {[%clk 0:01:58]} 16. Rxg3 {[%clk 0:02:13.9]} 16... h4 {[%clk
0:01:43.8]} 17. Rg5 {[%clk 0:02:07.1]} 17... Ne4 {[%clk 0:01:33]} 18. Rg4 {[%clk
0:02:06.2]} 18... Kg7 {[%clk 0:01:25.7]} 19. f5 {[%clk 0:01:55.6]} 19... exf5
{[%clk 0:01:11.3]} 20. Qxf5 {[%clk 0:01:51.2]} 20... Qf6 {[%clk 0:00:38.1]} 21.
Bxe4 {[%clk 0:01:35.8]} 21... dxe4 {[%clk 0:00:36.3]} 22. Bh6+ {[%clk
0:01:35.5]} 1-0

[Event "Early-Titled-Tuesday-Blitz-January-30-2024"]
[Site "Chess.com"]
[Date "2024.01.30"]
[Round "9"]
[White "Mourinho_Jose"]
[Black "Akylbek2021"]
[Result "0-1"]
[WhiteElo "2492"]
[BlackElo "2286"]
[TimeControl "180+1"]
[EndTime "9:46:47 PST"]
[Termination "Akylbek2021 won by checkmate"]

1. e4 {[%clk 0:02:53.1]} 1... Nc6 {[%clk 0:02:58.6]} 2. Nf3 {[%clk 0:02:52.9]}
2... e5 {[%clk 0:02:58.3]} 3. Nc3 {[%clk 0:02:53]} 3... Nf6 {[%clk 0:02:58.2]}
4. d4 {[%clk 0:02:53.7]} 4... exd4 {[%clk 0:02:58.7]} 5. Nxd4 {[%clk 0:02:54.6]}
5... Bb4 {[%clk 0:02:59.1]} 6. Nxc6 {[%clk 0:02:55.3]} 6... bxc6 {[%clk
0:03:00]} 7. Bd3 {[%clk 0:02:55.8]} 7... d5 {[%clk 0:03:00]} 8. exd5 {[%clk
0:02:56.5]} 8... O-O {[%clk 0:03:00.7]} 9. O-O {[%clk 0:02:57]} 9... cxd5 {[%clk
0:03:01.4]} 10. Bg5 {[%clk 0:02:57.7]} 10... c6 {[%clk 0:02:59.2]} 11. Na4
{[%clk 0:02:57.7]} 11... Be7 {[%clk 0:02:56.6]} 12. c3 {[%clk 0:02:57.7]} 12...
h6 {[%clk 0:02:56.6]} 13. Bh4 {[%clk 0:02:57.5]} 13... Rb8 {[%clk 0:02:55.5]}
14. Bc2 {[%clk 0:02:54.5]} 14... Re8 {[%clk 0:02:34.1]} 15. Re1 {[%clk
0:02:49.4]} 15... Bg4 {[%clk 0:01:58.5]} 16. Qd3 {[%clk 0:02:45.9]} 16... g6
{[%clk 0:01:58]} 17. h3 {[%clk 0:02:43.2]} 17... Bf5 {[%clk 0:01:57.9]} 18. Qd2
{[%clk 0:02:43.7]} 18... Bxc2 {[%clk 0:01:58]} 19. Qxc2 {[%clk 0:02:44.6]} 19...
Ne4 {[%clk 0:01:56.7]} 20. Bxe7 {[%clk 0:02:42.6]} 20... Rxe7 {[%clk 0:01:55.9]}
21. Re3 {[%clk 0:02:35.3]} 21... Qc7 {[%clk 0:01:39.8]} 22. Rae1 {[%clk
0:02:35]} 22... Rbe8 {[%clk 0:01:39.8]} 23. Qe2 {[%clk 0:02:33.8]} 23... f5
{[%clk 0:01:20.9]} 24. Qa6 {[%clk 0:02:18.1]} 24... f4 {[%clk 0:01:09.1]} 25.
Rf3 {[%clk 0:02:12.5]} 25... Nd2 {[%clk 0:01:03.8]} 26. Rxe7 {[%clk 0:01:54]}
26... Rxe7 {[%clk 0:00:59.3]} 27. Qd3 {[%clk 0:01:16.7]} 27... Re1+ {[%clk
0:00:52.9]} 28. Kh2 {[%clk 0:01:16.4]} 28... Nf1+ {[%clk 0:00:53.1]} 29. Kg1
{[%clk 0:01:16.7]} 29... Ng3+ {[%clk 0:00:51.7]} 30. Kh2 {[%clk 0:01:09.2]}
30... Rh1# {[%clk 0:00:51.6]} 0-1

[Event "Early-Titled-Tuesday-Blitz-January-30-2024"]
[Site "Chess.com"]
[Date "2024.01.30"]
[Round "9"]
[White "toog"]
[Black "Sofia_Blokhin"]
[Result "1-0"]
[WhiteElo "2587"]
[BlackElo "2240"]
[TimeControl "180+1"]
[EndTime "9:47:07 PST"]
[Termination "toog won by resignation"]

1. b4 {[%clk 0:03:00.9]} 1... d5 {[%clk 0:02:58.8]} 2. Bb2 {[%clk 0:02:58.6]}
2... Nf6 {[%clk 0:02:57.8]} 3. Nf3 {[%clk 0:02:57.4]} 3... e6 {[%clk 0:02:58]}
4. a3 {[%clk 0:02:56.3]} 4... Be7 {[%clk 0:02:58.1]} 5. e3 {[%clk 0:02:55.8]}
5... O-O {[%clk 0:02:58.6]} 6. c4 {[%clk 0:02:55.5]} 6... c5 {[%clk 0:02:58.3]}
7. bxc5 {[%clk 0:02:54]} 7... Bxc5 {[%clk 0:02:57.6]} 8. Qc2 {[%clk 0:02:54.2]}
8... b6 {[%clk 0:02:51.8]} 9. Be2 {[%clk 0:02:17.7]} 9... Bb7 {[%clk 0:02:51.1]}
10. O-O {[%clk 0:02:17.7]} 10... dxc4 {[%clk 0:02:48.4]} 11. Ne5 {[%clk
0:02:12.7]} 11... b5 {[%clk 0:02:39.7]} 12. a4 {[%clk 0:02:11]} 12... a6 {[%clk
0:02:39.4]} 13. d3 {[%clk 0:02:08.8]} 13... cxd3 {[%clk 0:02:33.1]} 14. Bxd3
{[%clk 0:02:06.3]} 14... Bd6 {[%clk 0:02:28.4]} 15. Rd1 {[%clk 0:01:45.5]} 15...
Qe7 {[%clk 0:01:57]} 16. axb5 {[%clk 0:01:30.9]} 16... axb5 {[%clk 0:01:56]} 17.
Rxa8 {[%clk 0:01:31.5]} 17... Bxa8 {[%clk 0:01:56.2]} 18. Bxb5 {[%clk
0:01:31.7]} 18... Bxe5 {[%clk 0:01:36.1]} 19. Bxe5 {[%clk 0:01:29.6]} 19... Ng4
{[%clk 0:01:33.3]} 20. Bd6 {[%clk 0:01:22.6]} 20... Qb7 {[%clk 0:01:29.3]} 21.
Bf1 {[%clk 0:01:21.6]} 21... Rc8 {[%clk 0:01:24.3]} 22. Qe2 {[%clk 0:01:15.2]}
22... Nf6 {[%clk 0:01:21.5]} 23. Nd2 {[%clk 0:01:13.7]} 23... Nc6 {[%clk
0:01:20.4]} 24. Nc4 {[%clk 0:00:57.7]} 24... Nd5 {[%clk 0:01:13.2]} 25. Qf3
{[%clk 0:00:52.7]} 25... Qb3 {[%clk 0:01:06]} 26. Nd2 {[%clk 0:00:43.2]} 26...
Nc3 {[%clk 0:00:54.9]} 27. Nxb3 {[%clk 0:00:36.1]} 1-0

[Event "Early-Titled-Tuesday-Blitz-January-30-2024"]
[Site "Chess.com"]
[Date "2024.01.30"]
[Round "9"]
[White "hasagoodchesser"]
[Black "RaulPerezGuerra"]
[Result "1-0"]
[WhiteElo "2732"]
[BlackElo "2499"]
[TimeControl "180+1"]
[EndTime "9:47:09 PST"]
[Termination "hasagoodchesser won by resignation"]

1. Nf3 {[%clk 0:02:57]} 1... Nf6 {[%clk 0:02:56.9]} 2. g3 {[%clk 0:02:57.4]}
2... b6 {[%clk 0:02:56.9]} 3. Bg2 {[%clk 0:02:56.9]} 3... Bb7 {[%clk 0:02:57.8]}
4. b3 {[%clk 0:02:57.5]} 4... e6 {[%clk 0:02:57.9]} 5. Bb2 {[%clk 0:02:57.6]}
5... Be7 {[%clk 0:02:58.8]} 6. O-O {[%clk 0:02:58.1]} 6... O-O {[%clk
0:02:59.6]} 7. c4 {[%clk 0:02:58.7]} 7... c5 {[%clk 0:03:00.1]} 8. d4 {[%clk
0:02:57.9]} 8... cxd4 {[%clk 0:02:59.1]} 9. Qxd4 {[%clk 0:02:58.1]} 9... Nc6
{[%clk 0:02:58.4]} 10. Qd2 {[%clk 0:02:57.9]} 10... d5 {[%clk 0:02:57.3]} 11.
cxd5 {[%clk 0:02:58.1]} 11... Qxd5 {[%clk 0:02:57.1]} 12. Rd1 {[%clk 0:02:57.1]}
12... Qxd2 {[%clk 0:02:57.1]} 13. Nbxd2 {[%clk 0:02:57.6]} 13... Rfd8 {[%clk
0:02:56.8]} 14. Nc4 {[%clk 0:02:58]} 14... Nb4 {[%clk 0:02:52.3]} 15. a3 {[%clk
0:02:50.5]} 15... Na6 {[%clk 0:02:43.7]} 16. Nfe5 {[%clk 0:02:48]} 16... Bxg2
{[%clk 0:02:42.6]} 17. Kxg2 {[%clk 0:02:48.9]} 17... Rxd1 {[%clk 0:02:42.6]} 18.
Rxd1 {[%clk 0:02:47.6]} 18... Rd8 {[%clk 0:02:43.5]} 19. Rxd8+ {[%clk
0:02:45.5]} 19... Bxd8 {[%clk 0:02:44.4]} 20. Nc6 {[%clk 0:02:45.4]} 20... Bc7
{[%clk 0:02:40.8]} 21. Nxa7 {[%clk 0:02:45]} 21... Kf8 {[%clk 0:02:37.8]} 22.
Nb5 {[%clk 0:02:34.3]} 22... Bd8 {[%clk 0:02:36.8]} 23. Bd4 {[%clk 0:02:18.8]}
23... Nd7 {[%clk 0:02:33]} 24. b4 {[%clk 0:02:14.4]} 24... f6 {[%clk 0:02:31.9]}
25. f4 {[%clk 0:02:11.8]} 25... Nab8 {[%clk 0:02:30.5]} 26. Na7 {[%clk
0:01:58.1]} 26... Bc7 {[%clk 0:02:17.3]} 27. Kf3 {[%clk 0:01:49.3]} 27... e5
{[%clk 0:02:14.3]} 28. fxe5 {[%clk 0:01:47.7]} 28... fxe5 {[%clk 0:02:15.2]} 29.
Bc3 {[%clk 0:01:36.3]} 29... Ke7 {[%clk 0:01:57.8]} 30. Nb5 {[%clk 0:01:35.9]}
30... Bd8 {[%clk 0:01:55.3]} 31. Nxe5 {[%clk 0:01:34.5]} 31... Nxe5+ {[%clk
0:01:53.8]} 32. Bxe5 {[%clk 0:01:35.4]} 32... Nc6 {[%clk 0:01:48.9]} 33. Bxg7
{[%clk 0:01:35.4]} 33... Kf7 {[%clk 0:01:48.9]} 34. Bc3 {[%clk 0:01:33.8]} 34...
Ke6 {[%clk 0:01:49.8]} 35. e4 {[%clk 0:01:30.5]} 35... h5 {[%clk 0:01:44.1]} 36.
Nd4+ {[%clk 0:01:30.5]} 36... Nxd4+ {[%clk 0:01:43.8]} 37. Bxd4 {[%clk
0:01:31.4]} 37... b5 {[%clk 0:01:44.2]} 38. h3 {[%clk 0:01:26.9]} 38... Bg5
{[%clk 0:01:43.9]} 39. Bb2 {[%clk 0:01:24.1]} 39... Bd2 {[%clk 0:01:40.2]} 40.
g4 {[%clk 0:01:22.7]} 40... hxg4+ {[%clk 0:01:41.1]} 41. Kxg4 {[%clk 0:01:22]}
41... Kf7 {[%clk 0:01:40.5]} 42. Kf5 {[%clk 0:01:19.8]} 42... Be1 {[%clk
0:01:39.3]} 43. e5 {[%clk 0:01:19.8]} 43... Bd2 {[%clk 0:01:35.8]} 44. e6+
{[%clk 0:01:19.8]} 44... Kf8 {[%clk 0:01:32.9]} 45. h4 {[%clk 0:01:19]} 45...
Kg8 {[%clk 0:01:28.7]} 46. Kg6 {[%clk 0:01:17.3]} 46... Kf8 {[%clk 0:01:25.4]}
47. Bf6 {[%clk 0:01:16.1]} 47... Ke8 {[%clk 0:01:21.3]} 48. h5 {[%clk
0:01:16.4]} 48... Kf8 {[%clk 0:01:20]} 49. h6 {[%clk 0:01:16.5]} 49... Bxh6
{[%clk 0:01:18.2]} 50. Kxh6 {[%clk 0:01:17.4]} 50... Ke8 {[%clk 0:01:18.6]} 51.
Kg6 {[%clk 0:01:17.9]} 51... Kf8 {[%clk 0:01:18.6]} 52. Kf5 {[%clk 0:01:18.3]}
52... Ke8 {[%clk 0:01:19.1]} 53. Ke5 {[%clk 0:01:19.2]} 1-0